[Event "FIDE Grand Swiss 2023"]
[Site "Villa Marina, Douglas, Isle of Man"]
[Date "2023.10.30"]
[Round "6.6"]
[White "Vidit, Santosh Gujrathi"]
[Black "Niemann, Hans Moke"]
[Result "1-0"]
[WhiteElo "2716"]
[BlackElo "2667"]
[EventDate "2023.10.25"]
[ECO "C88"]
[PlyCount "105"]
[BlackFideId "2093596"]
[TimeControl "40/100 + 20/50 + 15 + 30s/move"]
[WhiteFideId "5029465"]

1.e4 {[%clk 01:40:15] [%emt 00:00:44]} 1...e5 {[%clk 01:40:23] [%emt 00:00:37]} 
2.Nf3 {[%clk 01:40:32] [%emt 00:00:12]} 2...Nc6 {[%clk 01:40:44] [%emt
00:00:07]} 3.Bb5 {[%clk 01:40:45] [%emt 00:00:20]} 3...a6 {[%clk 01:38:42] [%emt
00:02:33]} 4.Ba4 {[%clk 01:41:03] [%emt 00:00:11]} 4...Nf6 {[%clk 01:39:05]
[%emt 00:00:05]} 5.O-O {[%clk 01:41:18] [%emt 00:00:16]} 5...Be7 {[%clk
01:39:30] [%emt 00:00:06]} 6.Re1 {[%clk 01:41:25] [%emt 00:00:23]} 6...b5 
{[%clk 01:39:31] [%emt 00:00:28]} 7.Bb3 {[%clk 01:41:52] [%emt 00:00:04]} 
7...O-O {[%clk 01:39:50] [%emt 00:00:10]} 8.a4 {[%clk 01:41:49] [%emt 00:00:33]} 
8...Bb7 {[%clk 01:37:47] [%emt 00:02:33]} 9.d3 {[%clk 01:41:40] [%emt 00:00:40]} 
9...d6 {[%clk 01:36:40] [%emt 00:01:37]} 10.Bd2 {[%clk 01:41:28] [%emt
00:00:42]} 10...Qd7 {[%clk 01:35:24] [%emt 00:01:46]} 11.h3 {[%clk 01:41:10]
[%emt 00:00:47]} 11...Nd8 {[%clk 01:34:10] [%emt 00:01:44]} 12.axb5 {[%clk
01:41:15] [%emt 00:00:27]} 12...axb5 {[%clk 01:34:31] [%emt 00:00:07]} 13.Rxa8 
{[%clk 01:41:37] [%emt 00:00:09]} 13...Bxa8 {[%clk 01:34:53] [%emt 00:00:06]} 
14.Nc3 {[%clk 01:41:46] [%emt 00:00:23]} 14...Ne6 {[%clk 01:35:11] [%emt
00:00:10]} 15.Bxe6 {[%clk 01:41:55] [%emt 00:00:23]} 15...fxe6 {[%clk 01:35:02]
[%emt 00:00:38]} 16.b4 {[%clk 01:42:16] [%emt 00:00:11]} 16...Bb7 {[%clk
01:28:15] [%emt 00:07:16]} 17.Qa1 {[%clk 01:42:00] [%emt 00:00:45]} 17...Ra8 
{[%clk 01:26:31] [%emt 00:02:13]} 18.Qb2 {[%clk 01:42:15] [%emt 00:00:16]} 
18...h6 {[%clk 01:18:52] [%emt 00:08:09]} 19.Ra1 {[%clk 01:40:36] [%emt
00:02:09]} 19...Rxa1+ {[%clk 01:14:17] [%emt 00:05:05]} 20.Qxa1 {[%clk 01:41:03]
[%emt 00:00:04]} 20...Kf7 {[%clk 01:13:01] [%emt 00:01:44]} 21.Qa7 {[%clk
01:21:06] [%emt 00:20:27]} 21...Bc6 {[%clk 01:13:19] [%emt 00:00:11]} 22.Qa5 
{[%clk 01:07:17] [%emt 00:14:21]} 22...Kg8 {[%clk 01:09:22] [%emt 00:04:26]} 
23.Be3 {[%clk 01:05:02] [%emt 00:02:49]} 23...Kh7 {[%clk 01:09:22] [%emt
00:00:27]} 24.Ba7 {[%clk 00:59:42] [%emt 00:05:50]} 24...Bd8 {[%clk 01:05:23]
[%emt 00:04:28]} 25.Qa6 {[%clk 00:55:10] [%emt 00:05:04]} 25...Be7 {[%clk
01:03:56] [%emt 00:01:55]} 26.Bb8 {[%clk 00:51:21] [%emt 00:04:19]} 26...Kg8 
{[%clk 01:03:57] [%emt 00:00:29]} 27.Nb1 {[%clk 00:48:22] [%emt 00:03:30]} 
27...Nh5 {[%clk 00:53:33] [%emt 00:10:53]} 28.g3 {[%clk 00:40:41] [%emt
00:08:12]} 28...Bd8 {[%clk 00:50:34] [%emt 00:03:29]} 29.Nbd2 {[%clk 00:38:33]
[%emt 00:02:38]} 29...Qe8 {[%clk 00:50:51] [%emt 00:00:12]} 30.Kf1 {[%clk
00:31:05] [%emt 00:07:59]} 30...Nf6 {[%clk 00:48:52] [%emt 00:02:29]} 31.Ke1 
{[%clk 00:27:38] [%emt 00:03:57]} 31...Kh7 {[%clk 00:48:26] [%emt 00:00:55]} 
32.Ke2 {[%clk 00:26:12] [%emt 00:01:57]} 32...Qd7 {[%clk 00:42:59] [%emt
00:05:56]} 33.Kd1 {[%clk 00:22:40] [%emt 00:04:03]} 33...Ng8 {[%clk 00:41:42]
[%emt 00:01:47]} 34.Nb3 {[%clk 00:13:49] [%emt 00:09:20]} 34...Ne7 {[%clk
00:39:27] [%emt 00:02:45]} 35.Na5 {[%clk 00:13:09] [%emt 00:01:11]} 35...Qe8 
{[%clk 00:39:49] [%emt 00:00:07]} 36.Ke2 {[%clk 00:12:26] [%emt 00:01:13]} 
36...d5 {[%clk 00:32:59] [%emt 00:07:21]} 37.Nd2 {[%clk 00:08:06] [%emt
00:04:50]} 37...Qh5+ {[%clk 00:26:29] [%emt 00:07:00]} 38.Ke1 {[%clk 00:07:38]
[%emt 00:00:58]} 38...Bd7 {[%clk 00:26:40] [%emt 00:00:17]} 39.Qb7 {[%clk
00:04:42] [%emt 00:03:28]} 39...dxe4 {[%clk 00:01:50] [%emt 00:25:20]} 40.dxe4 
{[%clk 00:02:46] [%emt 00:02:26]} 40...Qxh3 {[%clk 00:01:17] [%emt 00:01:03]} 
41.Bxc7 {[%clk 00:50:13] [%emt 00:03:03]} 41...Qh1+ {[%clk 00:44:01] [%emt
00:07:47]} 42.Ke2 {[%clk 00:50:30] [%emt 00:00:13]} 42...Qh5+ {[%clk 00:43:54]
[%emt 00:00:36]} 43.Nf3 {[%clk 00:34:57] [%emt 00:16:03]} 43...Qe8 {[%clk
00:13:18] [%emt 00:31:02]} 44.Nxe5 {[%clk 00:29:33] [%emt 00:05:58]} 44...Bc8 
{[%clk 00:13:40] [%emt 00:00:07]} 45.Qa7 {[%clk 00:20:23] [%emt 00:09:41]} 
45...Ng6 {[%clk 00:13:21] [%emt 00:00:49]} 46.Bxd8 {[%clk 00:16:45] [%emt
00:04:08]} 46...Nxe5 {[%clk 00:13:42] [%emt 00:00:08]} 47.Qc7 {[%clk 00:15:01]
[%emt 00:02:15]} 47...Qh5+ {[%clk 00:12:30] [%emt 00:01:42]} 48.Kd2 {[%clk
00:15:24] [%emt 00:00:07]} 48...Nf3+ {[%clk 00:07:31] [%emt 00:05:29]} 49.Kc3 
{[%clk 00:12:35] [%emt 00:03:20]} 49...Qh1 {[%clk 00:07:58] [%emt 00:00:02]} 
50.Kb2 {[%clk 00:08:41] [%emt 00:04:24]} 50...Nd2 {[%clk 00:06:40] [%emt
00:01:48]} 51.Bf6 {[%clk 00:07:58] [%emt 00:01:13]} 51...Qb1+ {[%clk 00:05:15]
[%emt 00:01:55]} 52.Ka3 {[%clk 00:08:23] [%emt 00:00:05]} 52...Qc1+ {[%clk
00:05:40] [%emt 00:00:06]} 53.Bb2 {[%clk 00:08:47] [%emt 00:00:06]} 1-0

[Event "FIDE Grand Swiss 2023"]
[Site "Villa Marina, Douglas, Isle of Man"]
[Date "2023.10.30"]
[Round "6.7"]
[White "Sevian, Samuel"]
[Black "Sindarov, Javokhir"]
[Result "0-1"]
[WhiteElo "2698"]
[BlackElo "2658"]
[EventDate "2023.10.25"]
[ECO "A10"]
[PlyCount "46"]
[BlackFideId "14205483"]
[TimeControl "40/100 + 20/50 + 15 + 30s/move"]
[WhiteFideId "2040506"]

1.c4 {[%clk 01:40:51] [%emt 00:00:08]} 1...g6 {[%clk 01:40:41] [%emt 00:00:20]} 
2.e4 {[%clk 01:41:11] [%emt 00:00:10]} 2...e5 {[%clk 01:40:45] [%emt 00:00:26]} 
3.Nf3 {[%clk 01:40:15] [%emt 00:01:26]} 3...Bg7 {[%clk 01:41:06] [%emt
00:00:09]} 4.d4 {[%clk 01:40:24] [%emt 00:00:21]} 4...exd4 {[%clk 01:41:30]
[%emt 00:00:06]} 5.Nxd4 {[%clk 01:40:48] [%emt 00:00:06]} 5...Nf6 {[%clk
01:41:56] [%emt 00:00:03]} 6.Nc3 {[%clk 01:40:47] [%emt 00:00:31]} 6...O-O 
{[%clk 01:42:18] [%emt 00:00:08]} 7.Be3 {[%clk 01:37:32] [%emt 00:03:45]} 
7...c6 {[%clk 01:42:38] [%emt 00:00:11]} 8.Qd2 {[%clk 01:22:44] [%emt 00:15:18]} 
8...Re8 {[%clk 01:20:45] [%emt 00:22:24]} 9.f3 {[%clk 01:21:35] [%emt 00:01:39]} 
9...d5 {[%clk 01:19:08] [%emt 00:02:07]} 10.exd5 {[%clk 00:49:10] [%emt
00:32:55]} 10...cxd5 {[%clk 01:05:15] [%emt 00:14:23]} 11.O-O-O {[%clk 00:49:06]
[%emt 00:00:33]} 11...Nc6 {[%clk 01:05:39] [%emt 00:00:06]} 12.Nxc6 {[%clk
00:47:09] [%emt 00:02:27]} 12...bxc6 {[%clk 01:05:58] [%emt 00:00:11]} 13.Bd4 
{[%clk 00:45:50] [%emt 00:01:48]} 13...Rb8 {[%clk 00:51:36] [%emt 00:14:53]} 
14.cxd5 {[%clk 00:37:47] [%emt 00:08:33]} 14...c5 {[%clk 00:49:43] [%emt
00:02:23]} 15.Bxc5 {[%clk 00:28:46] [%emt 00:09:31]} 15...Qa5 {[%clk 00:46:24]
[%emt 00:03:49]} 16.Bd6 {[%clk 00:10:14] [%emt 00:19:02]} 16...Bf5 {[%clk
00:43:30] [%emt 00:03:24]} 17.g4 {[%clk 00:06:53] [%emt 00:03:51]} 17...Rbc8 
{[%clk 00:42:55] [%emt 00:01:05]} 18.gxf5 {[%clk 00:06:46] [%emt 00:00:37]} 
18...Nxd5 {[%clk 00:43:18] [%emt 00:00:08]} 19.fxg6 {[%clk 00:05:34] [%emt
00:01:42]} 19...hxg6 {[%clk 00:41:31] [%emt 00:02:17]} 20.Bh3 {[%clk 00:02:53]
[%emt 00:03:11]} 20...Nxc3 {[%clk 00:40:33] [%emt 00:01:29]} 21.Bxc8 {[%clk
00:03:18] [%emt 00:00:05]} 21...Rxc8 {[%clk 00:41:01] [%emt 00:00:02]} 22.Qd3 
{[%clk 00:01:57] [%emt 00:01:50]} 22...Qxa2 {[%clk 00:40:45] [%emt 00:00:46]} 
23.Bc7 {[%clk 00:02:07] [%emt 00:00:20]} 23...Nxd1 {[%clk 00:40:51] [%emt
00:00:24]} 0-1

[Event "FIDE Grand Swiss 2023"]
[Site "Villa Marina, Douglas, Isle of Man"]
[Date "2023.10.30"]
[Round "6.8"]
[White "Predke, Alexandr"]
[Black "Shankland, Sam"]
[Result "1-0"]
[WhiteElo "2656"]
[BlackElo "2698"]
[EventDate "2023.10.25"]
[ECO "D15"]
[PlyCount "85"]
[BlackFideId "2004887"]
[TimeControl "40/100 + 20/50 + 15 + 30s/move"]
[WhiteFideId "24107581"]

1.d4 {[%clk 01:40:44] [%emt 00:00:15]} 1...d5 {[%clk 01:40:50] [%emt 00:00:11]} 
2.c4 {[%clk 01:41:07] [%emt 00:00:08]} 2...c6 {[%clk 01:41:13] [%emt 00:00:06]} 
3.Nf3 {[%clk 01:39:10] [%emt 00:02:27]} 3...Nf6 {[%clk 01:41:37] [%emt
00:00:06]} 4.Nc3 {[%clk 01:39:36] [%emt 00:00:04]} 4...dxc4 {[%clk 01:42:01]
[%emt 00:00:07]} 5.e4 {[%clk 01:39:57] [%emt 00:00:08]} 5...b5 {[%clk 01:42:23]
[%emt 00:00:08]} 6.a4 {[%clk 01:40:20] [%emt 00:00:07]} 6...b4 {[%clk 01:36:41]
[%emt 00:06:12]} 7.Na2 {[%clk 01:39:02] [%emt 00:01:49]} 7...Nxe4 {[%clk
01:34:08] [%emt 00:03:03]} 8.Bxc4 {[%clk 01:38:59] [%emt 00:00:31]} 8...e6 
{[%clk 01:32:32] [%emt 00:02:08]} 9.O-O {[%clk 01:39:09] [%emt 00:00:18]} 
9...Nf6 {[%clk 01:25:27] [%emt 00:07:36]} 10.Re1 {[%clk 01:35:27] [%emt
00:04:12]} 10...a5 {[%clk 01:17:28] [%emt 00:08:29]} 11.Bg5 {[%clk 01:35:40]
[%emt 00:00:17]} 11...Be7 {[%clk 01:14:17] [%emt 00:03:41]} 12.Ne5 {[%clk
01:34:37] [%emt 00:01:33]} 12...h6 {[%clk 01:12:21] [%emt 00:02:27]} 13.Bf4 
{[%clk 01:13:35] [%emt 00:21:32]} 13...Ba6 {[%clk 01:06:38] [%emt 00:06:13]} 
14.Bb3 {[%clk 01:09:24] [%emt 00:04:41]} 14...Bd6 {[%clk 00:51:01] [%emt
00:16:07]} 15.Ng6 {[%clk 00:40:04] [%emt 00:29:51]} 15...Bxf4 {[%clk 00:50:51]
[%emt 00:00:40]} 16.Nxh8 {[%clk 00:40:24] [%emt 00:00:09]} 16...Bc8 {[%clk
00:37:54] [%emt 00:13:26]} 17.Nc1 {[%clk 00:37:17] [%emt 00:03:38]} 17...Bxc1 
{[%clk 00:36:19] [%emt 00:02:05]} 18.Rxc1 {[%clk 00:32:19] [%emt 00:05:27]} 
18...Kf8 {[%clk 00:34:08] [%emt 00:02:41]} 19.Qe2 {[%clk 00:29:16] [%emt
00:03:34]} 19...Qd6 {[%clk 00:15:51] [%emt 00:18:46]} 20.d5 {[%clk 00:22:27]
[%emt 00:07:20]} 20...exd5 {[%clk 00:14:26] [%emt 00:01:56]} 21.Bxd5 {[%clk
00:22:47] [%emt 00:00:09]} 21...Bg4 {[%clk 00:14:43] [%emt 00:00:13]} 22.Nxf7 
{[%clk 00:14:28] [%emt 00:08:48]} 22...Qd7 {[%clk 00:14:22] [%emt 00:00:51]} 
23.Qc2 {[%clk 00:13:34] [%emt 00:01:24]} 23...Qxd5 {[%clk 00:13:16] [%emt
00:01:36]} 24.Ne5 {[%clk 00:13:03] [%emt 00:01:02]} 24...Nbd7 {[%clk 00:11:06]
[%emt 00:02:40]} 25.Ng6+ {[%clk 00:13:28] [%emt 00:00:05]} 25...Kf7 {[%clk
00:11:33] [%emt 00:00:03]} 26.Nf4 {[%clk 00:10:58] [%emt 00:03:00]} 26...Qg5 
{[%clk 00:07:53] [%emt 00:04:10]} 27.Qxc6 {[%clk 00:08:22] [%emt 00:03:05]} 
27...Qxf4 {[%clk 00:07:30] [%emt 00:00:53]} 28.Qxa8 {[%clk 00:08:50] [%emt
00:00:04]} 28...Be6 {[%clk 00:07:05] [%emt 00:00:54]} 29.Qxa5 {[%clk 00:06:52]
[%emt 00:02:27]} 29...b3 {[%clk 00:06:19] [%emt 00:01:16]} 30.Re3 {[%clk
00:05:27] [%emt 00:01:55]} 30...Qd4 {[%clk 00:04:36] [%emt 00:02:13]} 31.Rce1 
{[%clk 00:05:45] [%emt 00:00:12]} 31...Bd5 {[%clk 00:04:41] [%emt 00:00:26]} 
32.Qb5 {[%clk 00:05:05] [%emt 00:01:10]} 32...Bc4 {[%clk 00:03:38] [%emt
00:01:33]} 33.Qb4 {[%clk 00:04:40] [%emt 00:00:54]} 33...Nd5 {[%clk 00:03:33]
[%emt 00:00:35]} 34.Qd6 {[%clk 00:04:10] [%emt 00:01:00]} 34...N7f6 {[%clk
00:03:08] [%emt 00:00:55]} 35.Qe6+ {[%clk 00:02:59] [%emt 00:01:42]} 35...Kf8 
{[%clk 00:02:43] [%emt 00:00:56]} 36.Qc8+ {[%clk 00:02:51] [%emt 00:00:38]} 
36...Kf7 {[%clk 00:03:11] [%emt 00:00:02]} 37.Qe6+ {[%clk 00:03:15] [%emt
00:00:05]} 37...Kf8 {[%clk 00:03:39] [%emt 00:00:03]} 38.Rf3 {[%clk 00:02:19]
[%emt 00:01:25]} 38...g5 {[%clk 00:03:46] [%emt 00:00:23]} 39.Rc1 {[%clk
00:01:17] [%emt 00:01:33]} 39...Kg7 {[%clk 00:02:25] [%emt 00:01:51]} 40.Rxf6 
{[%clk 00:01:00] [%emt 00:00:47]} 40...Nxf6 {[%clk 00:02:51] [%emt 00:00:03]} 
41.Qxc4 {[%clk 00:01:11] [%emt 00:00:19]} 41...Qxb2 {[%clk 00:03:18] [%emt
00:00:04]} 42.Qc3 {[%clk 00:50:10] [%emt 00:01:31]} 42...Qa2 {[%clk 00:53:27]
[%emt 00:00:21]} 43.Ra1 {[%clk 00:49:53] [%emt 00:00:47]} 1-0

[Event "FIDE Grand Swiss 2023"]
[Site "Villa Marina, Douglas, Isle of Man"]
[Date "2023.10.30"]
[Round "6.9"]
[White "Wojtaszek, Radoslaw"]
[Black "L'ami, Erwin"]
[Result "1-0"]
[WhiteElo "2668"]
[BlackElo "2627"]
[EventDate "2023.10.25"]
[ECO "D08"]
[PlyCount "155"]
[BlackFideId "1007998"]
[TimeControl "40/100 + 20/50 + 15 + 30s/move"]
[WhiteFideId "1118358"]

1.d4 {[%clk 01:40:57] [%emt 00:00:01]} 1...d5 {[%clk 01:40:49] [%emt 00:00:11]} 
2.c4 {[%clk 01:41:22] [%emt 00:00:05]} 2...e5 {[%clk 01:41:10] [%emt 00:00:10]} 
3.dxe5 {[%clk 01:41:08] [%emt 00:00:44]} 3...d4 {[%clk 01:41:32] [%emt
00:00:08]} 4.Nf3 {[%clk 01:40:07] [%emt 00:01:30]} 4...Nc6 {[%clk 01:41:35]
[%emt 00:00:27]} 5.Nbd2 {[%clk 01:30:47] [%emt 00:09:50]} 5...Nge7 {[%clk
01:41:14] [%emt 00:00:51]} 6.Nb3 {[%clk 01:27:08] [%emt 00:04:09]} 6...Ng6 
{[%clk 01:40:05] [%emt 00:01:39]} 7.Nbxd4 {[%clk 01:19:56] [%emt 00:07:43]} 
7...Ngxe5 {[%clk 01:39:33] [%emt 00:01:01]} 8.Nxe5 {[%clk 01:13:21] [%emt
00:07:05]} 8...Nxe5 {[%clk 01:39:16] [%emt 00:00:47]} 9.e3 {[%clk 01:13:47]
[%emt 00:00:04]} 9...Bc5 {[%clk 01:39:10] [%emt 00:00:36]} 10.Qc2 {[%clk
00:57:49] [%emt 00:16:29]} 10...O-O {[%clk 01:20:40] [%emt 00:18:58]} 11.Nb3 
{[%clk 00:54:20] [%emt 00:04:01]} 11...Bb4+ {[%clk 01:13:31] [%emt 00:07:38]} 
12.Bd2 {[%clk 00:54:45] [%emt 00:00:05]} 12...Bxd2+ {[%clk 01:05:28] [%emt
00:08:33]} 13.Nxd2 {[%clk 00:55:09] [%emt 00:00:06]} 13...Re8 {[%clk 00:49:53]
[%emt 00:16:06]} 14.O-O-O {[%clk 00:48:52] [%emt 00:06:48]} 14...Qf6 {[%clk
00:48:33] [%emt 00:01:50]} 15.Ne4 {[%clk 00:47:32] [%emt 00:01:50]} 15...Qc6 
{[%clk 00:43:57] [%emt 00:05:06]} 16.Nc3 {[%clk 00:47:07] [%emt 00:00:54]} 
16...Be6 {[%clk 00:38:42] [%emt 00:05:45]} 17.Nd5 {[%clk 00:47:31] [%emt
00:00:06]} 17...Kh8 {[%clk 00:36:25] [%emt 00:02:47]} 18.Be2 {[%clk 00:42:16]
[%emt 00:05:44]} 18...Rad8 {[%clk 00:34:36] [%emt 00:02:19]} 19.Rd4 {[%clk
00:42:31] [%emt 00:00:15]} 19...Nxc4 {[%clk 00:24:07] [%emt 00:10:58]} 20.Ne7 
{[%clk 00:35:09] [%emt 00:07:53]} 20...Rxd4 {[%clk 00:19:28] [%emt 00:05:09]} 
21.Nxc6 {[%clk 00:35:35] [%emt 00:00:04]} 21...Rd2 {[%clk 00:19:39] [%emt
00:00:18]} 22.Qxc4 {[%clk 00:11:45] [%emt 00:24:21]} 22...Bxc4 {[%clk 00:19:10]
[%emt 00:00:58]} 23.Kxd2 {[%clk 00:12:12] [%emt 00:00:03]} 23...Bxe2 {[%clk
00:19:26] [%emt 00:00:14]} 24.Kxe2 {[%clk 00:12:39] [%emt 00:00:04]} 24...bxc6 
{[%clk 00:19:49] [%emt 00:00:07]} 25.Rd1 {[%clk 00:08:35] [%emt 00:04:34]} 
25...Kg8 {[%clk 00:18:44] [%emt 00:01:36]} 26.Rd7 {[%clk 00:09:01] [%emt
00:00:04]} 26...Rc8 {[%clk 00:18:57] [%emt 00:00:17]} 27.Kd3 {[%clk 00:09:26]
[%emt 00:00:05]} 27...Kf8 {[%clk 00:18:14] [%emt 00:01:12]} 28.Kc4 {[%clk
00:09:51] [%emt 00:00:05]} 28...Ke8 {[%clk 00:16:50] [%emt 00:01:54]} 29.Rd2 
{[%clk 00:09:45] [%emt 00:00:37]} 29...Rb8 {[%clk 00:16:03] [%emt 00:01:17]} 
30.Kc5 {[%clk 00:10:11] [%emt 00:00:04]} 30...Rb6 {[%clk 00:16:12] [%emt
00:00:21]} 31.b3 {[%clk 00:10:34] [%emt 00:00:07]} 31...Ra6 {[%clk 00:12:14]
[%emt 00:04:28]} 32.a4 {[%clk 00:10:12] [%emt 00:00:52]} 32...Rb6 {[%clk
00:12:02] [%emt 00:00:41]} 33.b4 {[%clk 00:09:25] [%emt 00:01:17]} 33...a5 
{[%clk 00:12:25] [%emt 00:00:07]} 34.bxa5 {[%clk 00:09:03] [%emt 00:00:52]} 
34...Ra6 {[%clk 00:12:02] [%emt 00:00:53]} 35.Rd4 {[%clk 00:09:14] [%emt
00:00:18]} 35...h5 {[%clk 00:10:37] [%emt 00:01:55]} 36.h4 {[%clk 00:06:02]
[%emt 00:03:42]} 36...Ke7 {[%clk 00:08:27] [%emt 00:02:40]} 37.f3 {[%clk
00:06:26] [%emt 00:00:06]} 37...Ke6 {[%clk 00:06:30] [%emt 00:02:27]} 38.Kb4 
{[%clk 00:04:14] [%emt 00:02:43]} 38...Ra8 {[%clk 00:05:42] [%emt 00:01:18]} 
39.Kc5 {[%clk 00:03:57] [%emt 00:00:47]} 39...Ra6 {[%clk 00:06:02] [%emt
00:00:09]} 40.Kb4 {[%clk 00:03:22] [%emt 00:01:05]} 40...Ra8 {[%clk 00:05:53]
[%emt 00:00:39]} 41.g4 {[%clk 00:01:27] [%emt 00:02:25]} 41...hxg4 {[%clk
00:49:42] [%emt 00:06:41]} 42.Rxg4 {[%clk 00:51:53] [%emt 00:00:05]} 42...g6 
{[%clk 00:48:06] [%emt 00:02:06]} 43.Rg5 {[%clk 00:48:46] [%emt 00:03:36]} 
43...Kd6 {[%clk 00:36:14] [%emt 00:12:22]} 44.e4 {[%clk 00:40:28] [%emt
00:08:49]} 44...Ra7 {[%clk 00:23:39] [%emt 00:13:05]} 45.f4 {[%clk 00:32:09]
[%emt 00:08:48]} 45...Rb7+ {[%clk 00:22:50] [%emt 00:01:19]} 46.Kc4 {[%clk
00:32:35] [%emt 00:00:04]} 46...Ra7 {[%clk 00:22:36] [%emt 00:00:44]} 47.h5 
{[%clk 00:13:58] [%emt 00:19:07]} 47...gxh5 {[%clk 00:22:47] [%emt 00:00:19]} 
48.Rxh5 {[%clk 00:14:25] [%emt 00:00:02]} 48...f6 {[%clk 00:20:12] [%emt
00:03:05]} 49.Rf5 {[%clk 00:14:12] [%emt 00:00:43]} 49...Ke6 {[%clk 00:19:44]
[%emt 00:00:57]} 50.Kd4 {[%clk 00:14:14] [%emt 00:00:29]} 50...Ke7 {[%clk
00:17:16] [%emt 00:02:58]} 51.Rc5 {[%clk 00:13:14] [%emt 00:01:30]} 51...Kd6 
{[%clk 00:17:14] [%emt 00:00:32]} 52.Rf5 {[%clk 00:13:41] [%emt 00:00:03]} 
52...Ke7 {[%clk 00:17:04] [%emt 00:00:40]} 53.Ke3 {[%clk 00:13:40] [%emt
00:00:30]} 53...Ke6 {[%clk 00:06:22] [%emt 00:11:12]} 54.Kf3 {[%clk 00:14:06]
[%emt 00:00:05]} 54...Ra8 {[%clk 00:06:21] [%emt 00:00:31]} 55.Kg4 {[%clk
00:14:08] [%emt 00:00:28]} 55...Rg8+ {[%clk 00:06:13] [%emt 00:00:37]} 56.Kh5 
{[%clk 00:13:43] [%emt 00:00:55]} 56...Rh8+ {[%clk 00:06:14] [%emt 00:00:30]} 
57.Kg6 {[%clk 00:14:04] [%emt 00:00:09]} 57...Rg8+ {[%clk 00:06:39] [%emt
00:00:05]} 58.Kh6 {[%clk 00:12:30] [%emt 00:02:04]} 58...Kf7 {[%clk 00:04:19]
[%emt 00:02:50]} 59.Kh5 {[%clk 00:12:50] [%emt 00:00:10]} 59...Rh8+ {[%clk
00:02:46] [%emt 00:02:03]} 60.Kg4 {[%clk 00:13:13] [%emt 00:00:08]} 60...Ke6 
{[%clk 00:02:27] [%emt 00:00:48]} 61.a6 {[%clk 00:13:08] [%emt 00:00:36]} 
61...Ra8 {[%clk 00:02:43] [%emt 00:00:14]} 62.Ra5 {[%clk 00:13:33] [%emt
00:00:05]} 62...c5 {[%clk 00:01:48] [%emt 00:01:25]} 63.a7 {[%clk 00:14:20]
[%emt 00:14:43]} 63...Kd6 {[%clk 00:14:12] [%emt 00:03:06]} 64.Kf3 {[%clk
00:14:27] [%emt 00:00:23]} 64...c6 {[%clk 00:13:47] [%emt 00:00:54]} 65.Ke3 
{[%clk 00:14:28] [%emt 00:00:29]} 65...Kc7 {[%clk 00:06:41] [%emt 00:07:37]} 
66.Rxc5 {[%clk 00:14:40] [%emt 00:00:18]} 66...Rxa7 {[%clk 00:07:06] [%emt
00:00:05]} 67.Rf5 {[%clk 00:14:41] [%emt 00:00:28]} 67...Rxa4 {[%clk 00:07:27]
[%emt 00:00:09]} 68.Rxf6 {[%clk 00:15:09] [%emt 00:00:03]} 68...Ra3+ {[%clk
00:07:45] [%emt 00:00:11]} 69.Kd4 {[%clk 00:15:02] [%emt 00:00:37]} 69...Ra4+ 
{[%clk 00:08:04] [%emt 00:00:11]} 70.Ke5 {[%clk 00:14:55] [%emt 00:00:36]} 
70...c5 {[%clk 00:08:28] [%emt 00:00:07]} 71.Re6 {[%clk 00:13:11] [%emt
00:02:14]} 71...Rd4 {[%clk 00:05:36] [%emt 00:03:22]} 72.f5 {[%clk 00:13:20]
[%emt 00:00:21]} 72...Rd8 {[%clk 00:05:19] [%emt 00:00:46]} 73.f6 {[%clk
00:09:08] [%emt 00:04:43]} 73...c4 {[%clk 00:05:19] [%emt 00:00:30]} 74.f7 
{[%clk 00:09:27] [%emt 00:00:11]} 74...c3 {[%clk 00:04:49] [%emt 00:01:00]} 
75.Re7+ {[%clk 00:08:54] [%emt 00:01:03]} 75...Kb6 {[%clk 00:04:18] [%emt
00:01:01]} 76.Re8 {[%clk 00:09:20] [%emt 00:00:04]} 76...c2 {[%clk 00:04:34]
[%emt 00:00:15]} 77.Rxd8 {[%clk 00:09:45] [%emt 00:00:05]} 77...c1=Q {[%clk
00:04:58] [%emt 00:00:06]} 78.f8=Q {[%clk 00:09:38] [%emt 00:00:36]} 1-0